bitfinex/quotes_ETHUSD_20250905
["timestamp","ask_amount","ask_price","bid_price","bid_amount"]
[1757081465531,0.002,4432.7,4432.0,2.25627891]
[1757081465705,0.002,4432.7,4431.6,1.664]
[1757081465904,2.25630843,4432.1,4431.7,3.525]
[1757081466202,2.25630843,4432.1,4430.1,3.0]
[1757081466203,1.3199,4432.0,4430.7,1.664]
[1757081466514,0.9852,4432.0,4431.2,0.1128]
[1757081466714,0.1128,4432.2,4431.4,0.1128]
[1757081466943,0.1128,4432.2,4431.6,0.792]
[1757081467151,0.1128,4432.5,4431.7,2.3692703]
[1757081467309,0.002,4432.7,4431.2,4.101]
[1757081467504,17.81291425,4432.4,4430.8,0.025]
[1757081467802,2.25687783,4430.9,4430.8,0.025]
[1757081468233,6.57677783,4430.9,4430.8,0.025]
[1757081468757,3.0,4430.9,4430.8,0.025]
[1757081468960,5.25687783,4430.9,4430.8,0.025]
[1757081469558,5.69927783,4430.9,4430.8,0.025]
[1757081469722,6.59007783,4430.9,4430.8,0.025]
[1757081470224,2.25738729,4429.9,4429.8,0.025]
[1757081471035,3.59058729,4429.9,4429.8,0.025]
[1757081471239,20.08360154,4429.9,4429.8,0.025]
[1757081471755,3.59058729,4429.9,4429.8,0.025]
[1757081471953,2.25738729,4429.9,4429.8,0.025]
[1757081472638,2.69978729,4429.9,4429.8,0.025]
[1757081473258,2.25743825,4429.8,4428.8,0.025]
[1757081473462,5.25789699,4428.9,4428.8,0.025]
[1757081473662,9.35589699,4428.9,4428.8,0.025]
[1757081473981,2.25794797,4428.8,4427.8,0.025]
[1757081474283,21.75142116,4427.9,4427.8,0.025]
[1757081474446,25.85142116,4427.9,4427.8,0.025]
[1757081474645,27.18462116,4427.9,4427.8,0.025]
[1757081474961,27.18462116,4427.9,4426.8,0.025]
[1757081474962,2.25891707,4426.9,4426.8,0.025]
[1757081475164,25.87535098,4426.9,4426.3,0.00889488]
[1757081475362,3.0,4426.7,4426.3,0.00889488]
[1757081475560,2.25917223,4426.4,4426.3,0.00889488]
[1757081475725,4.098,4426.9,4426.3,0.00889488]
[1757081475726,3.0,4426.8,4426.3,0.00889488]
[1757081475933,2.25913617,4426.5,4426.3,0.00889488]
[1757081476132,3.0,4426.8,4426.3,0.00889488]
[1757081476353,2.25901913,4426.7,4426.3,0.00889488]
[1757081476546,2.25917223,4426.4,4426.3,0.00889488]
[1757081477471,2.37197223,4426.4,4426.3,0.00889488]
[1757081477772,0.1128,4426.4,4426.3,0.00889488]
[1757081479644,3.0,4426.8,4426.3,0.00889488]
[1757081479645,2.25897334,4426.8,4426.3,0.73569488]
[1757081479946,0.1128,4426.7,4426.3,0.00889488]
[1757081480737,4.086,4427.5,4426.3,0.00889488]
[1757081480969,0.4424,4427.1,4426.3,0.00889488]
[1757081481195,0.1128,4426.5,4426.3,0.00889488]
[1757081481493,2.55707223,4426.4,4426.3,0.00889488]
[1757081481644,2.25942746,4425.9,4425.8,0.025]
[1757081481844,9.37184712,4425.9,4425.8,0.026]
[1757081482093,10.97752746,4425.9,4425.8,0.026]
[1757081485165,12.30121602,4425.9,4425.8,0.026]
[1757081485373,12.30121602,4425.9,4425.0,0.005]
[1757081485374,2.25983593,4425.1,4425.0,0.005]
[1757081485569,11.00483593,4425.1,4425.0,0.005]
[1757081485791,12.63513593,4425.1,4425.0,0.005]
[1757081485994,2.25998915,4424.8,4424.7,1e-08]
[1757081486289,9.33998915,4424.8,4424.7,1e-08]
[1757081486494,10.97108915,4424.8,4424.7,1e-08]
[1757081487088,2.26034673,4424.1,4424.0,1e-08]
[1757081487290,3.92534673,4424.1,4424.0,1e-08]
[1757081487490,11.64890893,4424.1,4424.0,1e-08]
[1757081487669,11.03034673,4424.1,4424.0,1e-08]
[1757081487873,0.12552556,4424.5,4424.0,0.29170001]
[1757081488189,2.38566866,4424.5,4424.0,1e-08]
[1757081488596,2.55824673,4424.1,4424.0,1e-08]
[1757081488779,2.28576639,4424.1,4424.0,1e-08]
[1757081488959,4.44806782,4424.1,4424.0,1e-08]
[1757081489291,4.44806782,4424.1,4422.2,2.26130576]
[1757081489292,0.792,4424.0,4419.5,0.11789904]
[1757081489466,0.792,4424.0,4419.4,0.00941775]
[1757081489467,0.792,4423.3,4420.4,0.4351]
[1757081489657,3.792,4423.1,4420.4,0.4351]
[1757081489858,2.9982,4423.0,4420.8,0.4351]
[1757081490061,5.26101112,4422.8,4421.0,0.4351]
[1757081490293,4.35861966,4422.7,4420.9,0.00907933]
[1757081490513,0.8908,4422.7,4421.0,0.94191931]
[1757081490808,2.26193168,4421.0,4420.9,0.00907933]
[1757081490957,2.26182936,4421.2,4420.9,0.00907933]
[1757081491160,1.3332,4421.0,4420.1,1e-08]
[1757081491481,2.26234107,4420.2,4420.1,1e-08]
[1757081491682,6.41734107,4420.2,4420.1,1e-08]
[1757081491871,4.157,4420.2,4420.1,1e-08]
[1757081492083,2.26234107,4420.2,4420.1,1e-08]
[1757081492258,0.56993937,4421.5,4420.1,1.35440001]
[1757081492259,0.12753937,4421.5,4420.1,1.35440001]
[1757081492603,0.12753937,4421.5,4420.8,2.26200431]
[1757081492810,0.12753937,4421.5,4421.4,3.05372705]
[1757081493106,0.12753937,4421.5,4421.4,3.61612705]
[1757081493313,2.38925717,4421.5,4420.8,0.4351]
[1757081493465,0.12753937,4421.5,4421.4,2.26172705]
[1757081493676,0.12753937,4421.5,4421.4,1.3544]
[1757081494100,0.12753937,4421.5,4421.4,0.4351]
[1757081494378,0.12753937,4421.5,4420.9,0.9193]
[1757081494578,0.12753937,4421.5,4421.0,0.4351]
[1757081494922,0.12753937,4421.5,4421.4,3.05372705]
[1757081495107,0.12753937,4421.5,4421.4,1.3544]
[1757081495294,2.26175159,4421.4,4420.6,1.865]
[1757081495608,0.12753937,4421.5,4420.7,0.4351]
[1757081496017,2.38922295,4421.5,4420.7,0.4351]
[1757081496323,0.12753937,4421.5,4421.0,2.2619071]
[1757081496491,0.12753937,4421.5,4421.0,0.9193]
[1757081496884,0.12753937,4421.5,4420.3,0.9193]
[1757081497082,0.1128,4421.4,4420.7,0.1128]
[1757081497306,0.12753937,4421.5,4420.1,1e-08]
[1757081497307,4.21941966,4421.3,4420.1,1e-08]
[1757081497518,2.26234107,4420.2,4420.1,1e-08]
[1757081498113,3.59554107,4420.2,4420.1,1e-08]
[1757081498315,12.46154107,4420.2,4420.1,1e-08]
[1757081498519,11.13934107,4420.2,4420.1,1e-08]
[1757081498718,4.81830382,4421.9,4420.1,1e-08]
[1757081498934,2.26234107,4420.2,4420.1,1e-08]
[1757081499233,9.22976073,4420.2,4420.1,1e-08]
[1757081499448,1.666,4420.6,4420.1,1e-08]
[1757081499600,2.26234107,4420.2,4420.1,1e-08]
[1757081499936,3.64156073,4420.2,4420.1,1e-08]
[1757081500319,6.64156073,4420.2,4420.1,1e-08]
[1757081500630,10.85214107,4420.2,4420.1,1e-08]
[1757081500831,6.61614107,4420.2,4420.1,1e-08]
[1757081501315,9.50134107,4420.2,4420.1,1e-08]
[1757081501492,6.16164107,4420.2,4420.1,1e-08]
[1757081501825,5.26234107,4420.2,4420.1,1e-08]
[1757081502030,9.50334107,4420.2,4420.1,1e-08]
[1757081502618,5.26234107,4420.2,4420.1,1e-08]
[1757081502818,2.26234107,4420.2,4420.1,1e-08]
[1757081503008,9.50034107,4420.2,4420.1,1e-08]
[1757081503204,6.50034107,4420.2,4420.1,1e-08]
[1757081504225,7.39964107,4420.2,4420.1,1e-08]
[1757081504723,6.50034107,4420.2,4420.1,1e-08]
[1757081505294,2.26234107,4420.2,4420.1,1e-08]
[1757081505494,6.52176073,4420.2,4420.1,1e-08]
[1757081505822,9.49134107,4420.2,4420.1,1e-08]
[1757081506022,9.94584107,4420.2,4420.1,1e-08]
[1757081506234,6.48934107,4420.2,4420.1,1e-08]
[1757081506438,9.48934107,4420.2,4420.1,1e-08]
[1757081507226,5.26234107,4420.2,4420.1,1e-08]
[1757081507454,23.37808668,4420.2,4420.1,1e-08]
[1757081507638,22.47878668,4420.2,4420.1,1e-08]
[1757081507941,9.49034107,4420.2,4420.1,1e-08]
[1757081508138,0.8993,4421.5,4420.1,0.43830001]
[1757081508306,4.227,4420.9,4420.1,1e-08]
[1757081508505,2.26234107,4420.2,4420.1,1e-08]
[1757081508836,6.52076073,4420.2,4420.1,1e-08]
[1757081509137,11.15434107,4420.2,4420.1,1e-08]
[1757081509819,9.80254107,4420.2,4420.1,1e-08]
[1757081510207,6.49434107,4420.2,4420.1,1e-08]
[1757081510407,6.79954107,4420.2,4420.1,1e-08]
[1757081510720,6.49434107,4420.2,4420.1,1e-08]
[1757081511412,6.79954107,4420.2,4420.1,1e-08]
[1757081511613,24.14178668,4420.2,4420.1,1e-08]
[1757081512140,9.49434107,4420.2,4420.1,1e-08]
[1757081512307,9.49334107,4420.2,4420.1,1e-08]
[1757081512511,9.49334107,4420.2,4419.6,0.001]
[1757081512512,5.26239225,4420.1,4419.6,0.001]
[1757081512744,2.2626994,4419.5,4419.4,1e-08]
[1757081512928,9.82731906,4419.5,4419.4,1e-08]
[1757081513234,24.31369429,4419.5,4419.4,1e-08]
[1757081513439,24.31289429,4419.5,4419.4,1e-08]
[1757081513832,20.07889429,4419.5,4419.4,1e-08]
[1757081514025,24.30989429,4419.5,4419.4,1e-08]
[1757081514225,2.26292048,4419.1,4418.6,1e-08]
[1757081514425,2.26305784,4418.8,4418.6,1e-08]
[1757081514625,2.26310905,4418.7,4418.6,1e-08]
[1757081515258,24.14755466,4418.7,4418.6,1e-08]
[1757081515442,23.69305466,4418.7,4418.6,1e-08]
[1757081515846,24.14755466,4418.7,4418.6,1e-08]
[1757081516162,2.26333034,4418.3,4417.8,0.03475616]
[1757081516460,18.25196447,4417.9,4417.8,0.03475616]
[1757081516663,22.49396447,4417.9,4417.8,0.03475616]
[1757081516871,6.50351886,4417.9,4417.8,0.03475616]
[1757081517371,0.1128,4417.9,4417.8,1.66325616]
[1757081517569,0.1128,4417.9,4417.8,0.03475616]
[1757081517731,0.1128,4417.9,4417.8,0.76655616]
[1757081517931,2.26316896,4418.6,4417.9,2.26350998]
[1757081517932,4.239,4418.3,4417.9,2.26350998]
[1757081518137,0.1128,4418.1,4418.0,1.335]
[1757081518339,2.26310091,4418.8,4418.2,2.26333359]
[1757081518569,0.1128,4418.4,4418.1,2.2634164]
[1757081518732,0.1128,4418.4,4418.3,0.2935]
[1757081519152,0.1128,4418.9,4418.4,2.26322552]
[1757081519371,0.1128,4418.9,4418.5,0.4383]
[1757081519679,0.1128,4418.9,4418.2,0.1128]
[1757081519680,0.1128,4418.9,4418.8,2.55655784]
[1757081519853,0.1128,4418.9,4418.8,1.6285]
[1757081520052,0.1128,4418.9,4418.8,0.2935]
[1757081520466,0.1128,4418.9,4418.2,1.0095]
[1757081520633,0.12307624,4419.2,4418.8,0.2935]
[1757081520832,2.5673,4420.9,4418.9,0.02263006]
[1757081521032,4.6885,4420.8,4419.0,1.335]
[1757081521234,1.668,4420.9,4419.7,2.26259083]
[1757081521484,1.668,4420.9,4419.6,0.8967]
[1757081521485,4.234,4420.8,4419.6,0.8967]
[1757081521682,2.26263498,4419.7,4418.9,2.26299098]
[1757081521978,2.26263498,4419.7,4417.8,0.03575616]
[1757081521979,0.3052,4419.0,4417.8,0.03575616]
[1757081522181,12.98844561,4418.8,4417.8,0.03575616]
[1757081522510,3.0,4418.7,4417.8,0.03575616]
[1757081522665,2.2630813,4418.8,4417.8,0.47405616]
[1757081522967,4.245,4418.6,4417.8,0.03575616]
[1757081523177,2.26347845,4418.0,4417.8,0.03575616]
[1757081523344,0.02541966,4418.5,4417.8,0.03575616]
[1757081523762,2.2634875,4418.0,4417.8,0.03575616]
[1757081523934,12.98844561,4419.0,4417.8,0.03575616]
[1757081524271,4.243,4418.9,4417.8,0.03575616]
[1757081524430,3.0,4418.8,4417.8,0.03575616]
[1757081524634,2.26351886,4417.9,4417.8,0.03575616]
[1757081524950,6.50651886,4417.9,4417.8,0.03575616]
[1757081525171,2.26338484,4418.2,4417.8,0.03575616]
[1757081525387,1.668,4418.4,4417.9,0.4383]
[1757081525589,0.8993,4419.4,4418.0,1.335]
[1757081525590,4.242,4418.9,4418.0,1.335]
[1757081525792,2.26320414,4418.6,4417.8,2.2992934]
[1757081525955,0.8993,4419.4,4418.2,2.26333428]
[1757081526163,0.4545,4420.4,4418.4,2.26326271]
[1757081526363,4.244,4420.1,4418.3,0.4383]
[1757081526705,1.668,4420.5,4419.5,2.2626775]
[1757081526911,17.26286527,4420.1,4418.4,0.8967]
[1757081527086,3.0,4419.9,4418.1,0.4383]
[1757081527259,2.2630967,4418.8,4418.1,0.4383]
[1757081527464,2.2630967,4418.8,4418.1,2.70167887]
[1757081527678,4.29841966,4418.7,4417.2,2.1063]
[1757081527901,3.0,4418.6,4417.2,0.4383]
[1757081528203,3.0,4418.6,4417.3,2.26382544]
[1757081528204,5.2631792,4418.6,4417.3,2.26382544]
[1757081528397,0.02541966,4418.5,4417.2,0.4383]
[1757081528702,2.26321149,4418.5,4417.2,0.4383]
[1757081528904,2.26326271,4418.4,4417.2,0.4383]
[1757081529209,2.26326271,4418.4,4417.0,0.90662537]
[1757081529210,2.26326271,4418.4,4417.3,0.02263826]
[1757081529389,4.272,4418.6,4417.7,2.26360447]
[1757081529568,6.53517043,4418.6,4417.5,1.3042]
[1757081529775,4.272,4418.6,4417.8,2.2993209]
[1757081529995,3.0,4419.0,4417.8,2.2993209]
[1757081529996,4.28,4419.0,4417.9,2.26351555]
[1757081530182,4.28,4419.0,4418.0,0.4325]
[1757081530183,2.26306268,4418.8,4418.0,0.4325]
[1757081530500,4.28,4419.0,4417.8,0.03575616]
[1757081530670,0.1128,4418.9,4418.1,2.37618542]
[1757081530870,0.1128,4418.9,4418.1,0.1128]
[1757081531567,0.1128,4418.9,4418.2,2.26336517]
[1757081531773,0.1128,4418.9,4418.3,0.4325]
[1757081531975,12.98844561,4418.7,4417.8,0.03575616]
[1757081532206,2.26351886,4417.9,4417.8,0.03575616]
[1757081532577,6.57961886,4417.9,4417.8,0.03575616]
[1757081533409,5.26351886,4417.9,4417.8,0.03575616]
[1757081533998,2.2633313,4418.3,4417.8,0.03575616]
[1757081533999,2.262852,4419.3,4417.8,7.74651482]
[1757081534314,2.26310708,4418.8,4418.1,2.26339114]
[1757081534517,0.434,4419.8,4417.9,0.4325]
[1757081534679,12.98844561,4419.3,4417.8,0.03575616]
[1757081534884,2.26300663,4418.9,4417.8,0.03575616]
[1757081535304,2.26328856,4418.4,4417.8,2.73180261]
[1757081535502,3.0,4419.1,4417.8,0.46825616]
[1757081535816,4.28,4419.7,4417.8,0.46825616]
[1757081536021,0.002,4420.2,4417.9,1.6637]
[1757081536198,2.26308829,4418.8,4418.0,3.217]
[1757081536388,2.26304964,4418.9,4418.0,2.26345115]
[1757081536715,2.26303553,4418.9,4418.3,2.26330105]
[1757081537013,15.25106423,4419.7,4418.4,2.69575399]
[1757081537014,2.26294504,4419.1,4418.4,2.69575399]
[1757081537212,2.26299348,4419.0,4418.4,0.4325]
[1757081537382,2.26306884,4418.8,4418.4,0.4325]
[1757081537593,2.26306884,4418.8,4418.2,2.26332613]
[1757081537933,2.26306884,4418.8,4417.8,0.46825616]
[1757081537934,5.26351886,4417.9,4417.8,0.03575616]
[1757081538336,6.57961886,4417.9,4417.8,0.03575616]
[1757081538801,6.57961886,4417.9,4416.8,0.025]
[1757081539004,15.25237443,4417.1,4416.8,0.025]
[1757081539202,5.26398007,4417.0,4416.8,0.025]
[1757081539402,5.26403133,4416.9,4416.8,0.025]
[1757081539936,2.26403133,4416.9,4416.8,0.025]
[1757081540102,12.98844561,4417.4,4416.8,0.025]
[1757081540441,2.26403133,4416.9,4416.8,0.025]
[1757081540844,3.58013133,4416.9,4416.8,0.025]
[1757081541148,5.26403133,4416.9,4416.8,0.025]
[1757081541328,5.26403133,4416.9,4416.8,0.029]
[1757081541329,3.14533133,4416.9,4416.8,0.029]
[1757081541537,3.60475099,4416.9,4416.8,0.029]
[1757081541842,2.28865099,4416.9,4416.8,0.029]
[1757081542435,3.57933133,4416.9,4416.8,0.029]
[1757081542737,2.26428765,4416.4,4416.3,0.01409458]
[1757081543054,21.90036192,4416.4,4416.3,0.01409458]
[1757081543202,2.26449275,4416.0,4415.9,0.004]
[1757081543538,9.55449275,4416.0,4415.9,0.004]
[1757081543702,10.87059275,4416.0,4415.9,0.004]
[1757081543904,2.26469788,4415.6,4415.5,0.01026379]
[1757081544109,26.16935249,4415.6,4415.5,0.01026379]
[1757081544417,5.26469788,4415.6,4415.5,0.01026379]
[1757081545019,4.292,4415.9,4415.5,0.01026379]
[1757081545325,2.26469788,4415.6,4415.5,0.01026379]
[1757081545537,4.292,4415.9,4415.5,0.01026379]
[1757081545745,4.295,4416.5,4415.5,1.31446379]
[1757081545944,5.26433892,4416.3,4415.5,1.31446379]
[1757081546107,2.26449099,4416.1,4415.5,0.01026379]
[1757081546312,3.0,4416.4,4415.5,0.01026379]
[1757081546524,18.27865461,4417.5,4415.6,0.4325]
[1757081546726,2.26469788,4415.6,4415.5,0.01026379]
[1757081547635,4.295,4416.1,4415.5,0.01026379]
[1757081547948,7.296,4416.4,4415.5,0.01026379]
[1757081548116,2.26469788,4415.6,4415.5,0.01026379]
[1757081548742,2.29011754,4415.6,4415.5,0.01026379]
[1757081549145,2.26469788,4415.6,4415.5,0.01026379]
[1757081549559,6.58079788,4415.6,4415.5,0.01026379]
[1757081549763,6.58079788,4415.6,4414.8,0.025]
[1757081549764,2.26485176,4415.3,4414.8,0.025]
[1757081550056,5.26505696,4414.9,4414.8,0.025]
[1757081550747,5.26505696,4414.9,4413.8,1e-08]
[1757081550748,2.26527189,4414.5,4413.8,1e-08]
[1757081550949,4.34541966,4414.4,4413.8,1e-08]
[1757081551116,2.26536483,4414.3,4413.8,1e-08]
[1757081551322,16.61065461,4414.1,4413.8,1e-08]
[1757081551520,2.26510827,4414.8,4413.8,1e-08]
[1757081551718,2.2652622,4414.5,4413.8,1e-08]
[1757081551939,2.26557013,4413.9,4413.8,1e-08]
[1757081552424,6.17308979,4413.9,4413.8,1e-08]
[1757081552615,5.26557013,4413.9,4413.8,1e-08]
[1757081552823,6.58167013,4413.9,4413.8,1e-08]
[1757081553020,5.26557013,4413.9,4413.8,1e-08]
[1757081553417,2.26587814,4413.3,4412.8,0.025]
[1757081553618,26.23795241,4413.3,4412.8,0.025]
[1757081553818,26.21253275,4413.3,4412.8,0.025]
[1757081554035,27.09463275,4413.3,4412.8,0.025]
[1757081554361,3.0,4413.2,4412.8,0.025]
[1757081554659,2.26608352,4412.9,4412.4,0.01094062]
[1757081554826,2.26628895,4412.5,4412.4,0.01094062]
[1757081555027,9.62470861,4412.5,4412.4,0.01094062]
[1757081555249,10.91538895,4412.5,4411.0,0.4325]
[1757081555452,21.87725176,4411.9,4410.8,0.025]
[1757081555828,2.26659715,4411.9,4410.8,0.025]
[1757081556153,23.19335176,4411.9,4410.8,0.025]
[1757081556669,21.87725176,4411.9,4410.8,0.025]
[1757081556852,0.434,4413.1,4410.8,0.025]
[1757081557032,0.434,4413.1,4411.4,0.8717]
[1757081557033,2.26659715,4411.9,4411.4,0.8717]
[1757081557351,2.26659715,4411.9,4411.1,0.1128]
[1757081557554,16.72345461,4412.0,4411.1,0.1128]
[1757081557718,0.1128,4412.0,4411.8,0.4575]
[1757081557925,4.34,4413.2,4411.9,1.3042]
[1757081558222,2.266262,4412.6,4411.9,1.417]
[1757081558427,0.1128,4412.8,4411.9,1.417]
[1757081558624,2.26568169,4413.7,4412.0,2.11886545]
[1757081558823,2.26575812,4413.6,4412.2,2.26642102]
[1757081559133,2.26567279,4413.7,4412.4,2.26634031]
[1757081559324,2.26559389,4413.9,4412.7,2.26618623]
[1757081559525,2.29063434,4413.8,4412.8,2.26610908]
[1757081559726,2.29063434,4413.8,4412.9,0.4441]
[1757081559727,0.025,4413.8,4412.9,0.4441]
[1757081560019,2.26567279,4413.7,4412.9,0.4441]
[1757081560426,2.26574274,4413.6,4412.9,0.4441]
[1757081560622,0.025,4413.8,4412.9,0.4441]
[1757081560826,2.29063254,4413.8,4413.0,2.26600008]
[1757081561028,0.025,4413.8,4412.9,1.2739]
[1757081561227,2.26585847,4413.4,4412.9,1.2739]
[1757081561424,0.025,4413.8,4412.1,0.004]
[1757081561425,2.26567279,4413.7,4412.1,0.004]
[1757081561649,0.02541966,4413.6,4412.2,0.4441]
[1757081561847,2.26609115,4412.9,4412.2,0.4441]
[1757081562053,2.26634072,4412.4,4412.1,0.004]
[1757081562235,0.02541966,4413.3,4412.1,0.004]
[1757081562437,2.26644304,4412.2,4412.1,0.004]
[1757081565464,2.2918627,4412.2,4412.1,0.004]
[1757081566533,6.6107627,4412.2,4411.8,0.025]
[1757081566869,21.87725176,4411.9,4411.8,0.025]
[1757081567034,26.21325176,4411.9,4411.8,0.025]
[1757081567230,27.09775176,4411.9,4411.8,0.025]
[1757081567437,27.09775176,4411.9,4407.9,0.499]
[1757081567438,19.33673512,4411.0,4407.9,0.499]
[1757081567658,18.87925715,4408.0,4407.9,0.499]
[1757081567963,2.26860254,4408.0,4407.9,0.499]
[1757081568168,2.268654,4407.9,4407.8,1e-08]
[1757081568366,23.19820861,4407.9,4407.8,1e-08]
[1757081568568,2.26899159,4407.3,4406.8,1e-08]
[1757081568734,2.2691688,4406.9,4406.8,1e-08]
[1757081568935,3.0,4407.8,4406.8,1e-08]
[1757081569134,3.1699614,4407.9,4406.8,1e-08]
[1757081569361,16.61065461,4408.0,4406.8,1e-08]
[1757081569636,2.26823571,4408.8,4406.8,1e-08]
[1757081569967,0.38615487,4409.9,4406.9,0.4441]
[1757081570183,0.68197705,4409.2,4407.0,0.02269117]
[1757081570369,2.26851241,4408.2,4404.9,2.27019909]
[1757081570581,5.49935045,4409.1,4406.8,0.8298]
[1757081570582,2.26885578,4407.6,4406.8,0.8298]
[1757081570870,1.0,4407.1,4406.7,0.4441]
[1757081571047,1.0,4407.1,4406.8,0.8298]
[1757081571389,2.26902905,4407.2,4406.9,1.2739]
[1757081571539,1.0,4407.6,4406.9,1.2739]
[1757081571871,1.0,4407.3,4406.6,0.4441]
[1757081572165,1.0,4406.5,4405.8,0.4441]
[1757081572335,1.0,4407.2,4405.9,0.8298]
[1757081572537,1.0,4407.3,4406.5,2.26933778]
[1757081572732,1.0,4407.6,4406.6,1.2739]
[1757081572969,1.0,4407.6,4406.5,1.671]
[1757081572970,2.26855468,4408.1,4407.1,2.2690188]
[1757081573171,1.0,4407.9,4407.2,1.2739]
[1757081573470,1.0,4408.2,4407.6,2.26880564]
[1757081573633,1.0,4408.3,4407.7,1.2739]
[1757081573835,1.0,4408.7,4407.8,0.4441]
[1757081574048,1.0,4408.7,4407.8,0.61159509]
[1757081574461,1.0,4408.7,4408.1,2.26854768]
[1757081574678,1.0,4408.7,4408.0,2.26859203]
[1757081574975,0.025,4408.8,4408.2,0.4441]
[1757081575190,3.26833584,4408.6,4408.2,0.4441]
[1757081575368,0.025,4408.8,4408.3,1.2739]
[1757081575685,0.025,4408.8,4408.6,2.26829043]
[1757081575888,0.025,4408.8,4408.7,3.93924233]
[1757081576049,0.025,4408.8,4408.7,9.42224233]
[1757081576251,0.025,4408.8,4408.7,2.9449]
[1757081577360,0.025,4408.8,4407.8,0.61133196]
[1757081577562,0.025,4408.8,4406.5,2.26936157]
[1757081577563,0.025,4408.8,4408.7,2.26824233]
[1757081577770,0.025,4408.8,4408.4,1.671]
[1757081577983,0.025,4408.8,4407.9,1.2739]
[1757081577984,1.0,4408.5,4407.9,1.2739]
[1757081578346,1.0,4408.5,4408.0,14.5]
[1757081578559,0.025,4408.8,4408.1,1.2739]
[1757081578781,1.0,4408.5,4408.1,1.2739]
[1757081578968,2.29323407,4408.8,4408.2,0.4441]
[1757081579175,0.025,4408.8,4408.3,14.5]
[1757081579486,0.025,4408.8,4408.4,1.3867]
[1757081579848,0.025,4408.8,4408.4,0.9426]
[1757081580054,0.025,4408.8,4408.5,14.5]
[1757081580254,0.025,4408.8,4408.5,15.7739]
[1757081580561,0.025,4409.8,4409.7,2.26772796]
[1757081580784,0.1128,4410.7,4410.6,2.26726522]
[1757081581087,0.025,4410.8,4410.6,2.26726522]
[1757081581088,0.025,4410.8,4410.7,0.792]
[1757081581402,0.025,4410.8,4410.7,8.97811382]
[1757081581818,0.025,4410.8,4410.7,9.77011382]
[1757081582020,0.025,4410.8,4410.7,4.33311382]
[1757081582191,0.025,4410.8,4410.7,9.76311382]
[1757081582382,0.001,4412.2,4411.7,2.26669991]
[1757081582583,0.001,4412.2,4411.7,9.52971073]
[1757081582900,0.001,4412.2,4411.7,11.59361073]
[1757081583078,0.001,4412.2,4411.7,26.09361073]
[1757081583283,0.001,4412.2,4411.7,20.67161073]
[1757081583476,1e-08,4411.8,4411.7,26.09061073]
[1757081583708,0.001,4412.2,4411.9,2.26659715]
[1757081584007,1e-08,4412.8,4412.7,3.05818623]
[1757081584205,1e-08,4412.8,4412.1,2.26649441]
[1757081584206,1e-08,4412.8,4412.0,1.39232719]
[1757081584422,1e-08,4412.8,4412.7,14.5]
[1757081584783,1e-08,4412.8,4412.7,19.91]
[1757081585009,1e-08,4412.8,4412.7,22.17618623]
[1757081585189,1e-08,4412.8,4412.7,22.17218623]
[1757081585394,1e-08,4412.8,4412.7,23.44608623]
[1757081585710,1e-08,4412.8,4412.7,19.902]
[1757081585918,1e-08,4412.8,4412.7,14.5]
[1757081586117,1.0,4412.3,4412.0,5.397]
[1757081586282,3.26656241,4412.0,4411.3,5.398]
[1757081586609,1.0,4412.0,4411.4,5.398]
[1757081586909,1.0,4412.0,4411.4,5.393]
[1757081587109,1.0,4412.0,4410.9,1.671]
[1757081587110,2.26684424,4411.5,4411.1,5.392]
[1757081587297,1.0,4411.6,4410.8,0.025]
[1757081587612,1.0,4411.3,4410.9,5.387]
[1757081587813,12.36917256,4411.6,4410.9,5.387]
[1757081587814,1.0,4411.6,4411.0,5.8281]
[1757081588001,1.0,4411.6,4411.1,5.382]
[1757081588189,1.0,4411.6,4410.8,0.025]
[1757081588390,1.0,4411.3,4410.9,5.379]
[1757081588591,1.0,4411.3,4410.9,7.64607092]
[1757081588909,2.26700697,4411.2,4410.8,0.025]
[1757081589110,1.0,4411.3,4410.8,5.404]
[1757081589311,3.26691058,4411.3,4410.9,5.373]
[1757081589481,1.0,4411.3,4410.9,5.367]
[1757081589823,1.0,4411.5,4410.9,5.367]
[1757081590110,1.0,4411.0,4410.9,5.367]
[1757081590305,1.0,4411.6,4410.9,5.36]
[1757081590501,1.0,4411.8,4411.6,2.26670608]
[1757081590713,1.0,4412.1,4411.7,5.36]
[1757081590880,1.1128,4412.4,4411.9,2.26659715]
[1757081591215,1.1128,4412.4,4411.7,0.1128]
[1757081591409,1.1128,4412.4,4411.8,19.849]
[1757081591410,0.1128,4412.4,4411.8,19.849]
[1757081591709,1.1128,4412.4,4411.8,19.849]
[1757081592114,1.1128,4412.4,4412.1,2.26648819]
[1757081592329,1.1128,4412.4,4412.2,5.339]
[1757081592494,1.0,4411.9,4410.8,0.025]
[1757081592817,2.26701605,4411.1,4410.8,1.695]
[1757081593024,1.0,4411.3,4410.8,1.695]
[1757081593208,1.0,4411.7,4410.9,0.0085653]
[1757081593392,0.4593,4412.4,4410.9,0.0085653]
[1757081593393,2.26664911,4411.8,4411.0,5.33]
[1757081593724,1.0,4412.2,4411.0,5.33]
[1757081594028,0.8193,4412.6,4411.5,2.26676797]
[1757081594029,1.0,4411.8,4411.5,2.26676797]
[1757081594193,1.0,4411.8,4411.4,2.26684973]
[1757081594380,1.0,4411.8,4411.1,14.5]
[1757081594587,1.0,4411.8,4411.2,5.32]
[1757081594825,1.0,4411.8,4411.3,3.0]
[1757081595135,1.0,4411.8,4411.1,14.5]
[1757081595414,1.0,4412.2,4412.1,2.26649441]
[1757081595609,1.0,4412.7,4412.2,2.26642581]
[1757081595811,1.0,4413.1,4411.7,2.26668179]
[1757081596025,1.0,4412.7,4412.4,2.26633792]
[1757081596208,1.0,4412.4,4411.2,3.0]
[1757081596405,1.0,4412.4,4412.0,2.26654566]
[1757081596721,1.0,4412.4,4412.1,5.302]